bitfinex/quotes_SOLUSD_20251006
["timestamp","ask_amount","ask_price","bid_price","bid_amount"]
[1759710651446,0.91,228.78,228.7,20.8]
[1759710651745,0.91,228.78,228.67,28.8864237]
[1759710651746,0.91,228.78,228.72,10.87647521]
[1759710651948,0.91,228.78,228.76,20.8]
[1759710652148,0.2,228.78,228.77,31.9]
[1759710652349,0.2,228.78,228.77,42.77647521]
[1759710652548,0.2,228.78,228.77,47.79767772]
[1759710655573,1e-08,228.78,228.77,47.79767772]
[1759710659055,0.1,228.95,228.77,47.79767772]
[1759710659056,0.71,228.87,228.85,20.8]
[1759710659364,0.71,228.87,228.86,31.88]
[1759710659864,5.20645259,228.95,228.86,31.88]
[1759710660177,0.1,228.95,228.87,10.87647521]
[1759710660375,0.71,228.94,228.89,10.87647521]
[1759710660578,0.71,228.93,228.91,4.36852911]
[1759710660869,0.1,228.95,228.92,31.88]
[1759710661089,0.1,228.95,228.93,10.87647521]
[1759710661256,0.81,228.95,228.94,31.88]
[1759710661777,0.81,228.95,228.93,31.88]
[1759710661961,0.81,228.95,228.84,31.67647521]
[1759710661962,0.71,228.94,228.84,31.67647521]
[1759710662161,2.26400316,228.95,228.88,20.8]
[1759710662162,0.71,228.93,228.88,20.8]
[1759710662363,0.71,228.92,228.89,31.88]
[1759710662567,0.71,228.91,228.89,31.88]
[1759710662879,0.71,228.9,228.89,31.88]
[1759710663089,0.71,228.9,228.88,31.88]
[1759710663454,0.1,228.95,228.88,31.88]
[1759710663455,0.71,228.89,228.88,31.88]
[1759710663650,0.71,228.89,228.88,31.86]
[1759710664672,0.71,228.93,228.88,42.73647521]
[1759710664978,0.71,228.92,228.88,47.10557692]
[1759710665475,0.71,228.91,228.88,31.86]
[1759710665676,0.71,228.9,228.88,31.86]
[1759710665973,0.71,228.89,228.88,31.86]
[1759710667169,0.71,228.89,228.82,31.67647521]
[1759710667379,20.9,228.95,228.84,10.87647521]
[1759710667380,0.71,228.88,228.84,10.87647521]
[1759710667689,2.16400316,228.93,228.84,10.87647521]
[1759710667864,2.87400316,228.92,228.85,31.86]
[1759710668064,0.71,228.91,228.85,31.86]
[1759710668279,0.71,228.9,228.85,31.86]
[1759710668459,0.71,228.89,228.85,31.86]
[1759710668664,0.71,228.88,228.85,31.86]
[1759710669187,0.71,228.88,228.85,36.22965422]
[1759710669366,0.71,228.88,228.85,31.86]
[1759710669768,0.71,228.92,228.86,11.52647521]
[1759710669982,0.71,228.92,228.86,10.87647521]
[1759710670365,0.1,228.95,228.89,20.8]
[1759710670366,0.81,228.95,228.89,20.8]
[1759710670659,0.71,228.94,228.89,20.8]
[1759710670860,5.81424065,228.93,228.85,10.87647521]
[1759710671080,0.1,228.95,228.86,31.86]
[1759710671081,5.81424065,228.92,228.86,31.86]
[1759710671271,0.71,228.91,228.86,31.86]
[1759710671686,0.71,228.9,228.86,31.86]
[1759710671986,0.71,228.93,228.86,31.86]
[1759710672190,0.81,228.95,228.87,11.52647521]
[1759710672388,0.81,228.95,228.9,20.8]
[1759710672700,0.81,228.95,228.91,31.86]
[1759710672701,0.1,228.95,228.91,31.86]
[1759710672877,0.1,228.95,228.91,32.51]
[1759710673076,0.1,228.95,228.92,4.36833828]
[1759710673287,0.1,228.95,228.92,5.01833828]
[1759710673470,0.1,228.95,228.93,10.87647521]
[1759710673672,0.1,228.95,228.94,31.84]
[1759710674588,0.81,228.95,228.9,1.74828995]
[1759710674763,0.71,228.94,228.9,22.84]
[1759710674967,0.71,228.93,228.9,22.84]
[1759710675190,0.71,228.92,228.9,22.84]
[1759710675370,5.81424065,228.91,228.81,10.87647521]
[1759710675689,0.71,228.9,228.83,10.87647521]
[1759710675986,0.71,228.89,228.84,31.84]
[1759710676191,0.71,228.89,228.84,0.65]
[1759710676486,0.71,228.89,228.85,31.84]
[1759710676664,0.71,228.92,228.85,32.49]
[1759710677858,5.10424065,228.94,228.85,31.84]
[1759710678063,0.68,228.93,228.81,20.8]
[1759710678286,5.10424065,228.87,228.82,31.84]
[1759710678472,0.68,228.86,228.82,31.84]
[1759710678892,0.68,228.85,228.78,20.8]
[1759710679064,0.68,228.84,228.79,31.84]
[1759710679265,0.68,228.83,228.79,31.84]
[1759710679465,5.78424065,228.85,228.79,31.84]
[1759710680061,5.78424065,228.84,228.79,31.84]
[1759710680299,5.78424065,228.83,228.75,10.87647521]
[1759710680473,5.78424065,228.83,228.74,21.45]
[1759710680474,0.68,228.82,228.78,31.84]
[1759710680665,0.68,228.81,228.78,31.84]
[1759710680878,0.68,228.8,228.74,0.65]
[1759710681219,5.78424065,228.8,228.74,31.84]
[1759710681521,0.68,228.8,228.74,31.84]
[1759710682183,5.10424065,228.78,228.74,31.84]
[1759710682381,0.68,228.77,228.74,31.84]
[1759710683093,0.68,228.76,228.74,31.84]
[1759710683300,0.68,228.78,228.74,31.84]
[1759710683613,0.68,228.8,228.74,31.84]
[1759710684189,20.8,228.85,228.74,32.49]
[1759710684190,5.10424065,228.82,228.74,32.49]
[1759710684397,0.68,228.83,228.74,32.49]
[1759710684799,5.78424065,228.82,228.74,32.49]
[1759710684980,5.10424065,228.81,228.74,32.49]
[1759710685416,5.78424065,228.8,228.74,31.84]
[1759710686107,5.78424065,228.8,228.64,10.93408629]
[1759710686108,5.10424065,228.75,228.66,0.65]
[1759710686297,5.78424065,228.75,228.67,31.84]
[1759710686501,5.78424065,228.75,228.68,0.65]
[1759710686700,5.10424065,228.74,228.68,0.65]
[1759710686900,0.68,228.75,228.67,31.84]
[1759710686901,5.10424065,228.73,228.67,31.84]
[1759710687107,5.78424065,228.73,228.65,0.65]
[1759710687311,5.78424065,228.73,228.66,31.84]
[1759710687312,5.10424065,228.72,228.66,31.84]
[1759710687487,5.78424065,228.71,228.66,31.84]
[1759710687689,5.10424065,228.72,228.66,31.84]
[1759710687994,0.68,228.71,228.66,31.84]
[1759710688510,0.68,228.7,228.66,31.84]
[1759710688702,10.87647521,228.79,228.66,0.65]
[1759710688703,20.8,228.76,228.66,0.65]
[1759710688898,5.78424065,228.74,228.67,0.65]
[1759710689116,5.10424065,228.73,228.64,0.65]
[1759710689488,5.78424065,228.72,228.64,0.65]
[1759710689889,5.10424065,228.71,228.63,31.84]
[1759710690090,5.78424065,228.7,228.63,31.84]
[1759710690313,0.68,228.7,228.63,31.84]
[1759710692142,5.78424065,228.7,228.63,31.84]
[1759710692620,20.8,228.76,228.63,32.49]
[1759710692832,21.48,228.76,228.65,10.87647521]
[1759710692989,21.48,228.76,228.66,0.65]
[1759710692990,0.68,228.76,228.66,0.65]
[1759710693192,0.68,228.76,228.67,4.37311409]
[1759710693490,20.8,228.79,228.68,32.49]
[1759710693491,5.10424065,228.78,228.68,32.49]
[1759710693691,5.80424065,228.79,228.69,0.65]
[1759710694304,5.10424065,228.77,228.69,0.65]
[1759710694500,0.7,228.79,228.68,31.84]
[1759710694501,5.10424065,228.75,228.68,31.84]
[1759710694708,5.80424065,228.74,228.68,31.84]
[1759710695089,5.10424065,228.73,228.67,32.49]
[1759710695287,20.8,228.81,228.64,20.8]
[1759710695288,5.80424065,228.72,228.64,20.8]
[1759710695492,5.10424065,228.69,228.64,31.84]
[1759710695836,5.10424065,228.69,228.64,32.49]
[1759710696227,5.10424065,228.69,228.64,31.84]
[1759710696228,0.7,228.68,228.64,31.84]
[1759710696432,5.10424065,228.69,228.64,32.49]
[1759710696652,5.80424065,228.69,228.64,32.49]
[1759710696951,5.10424065,228.69,228.64,31.84]
[1759710697255,0.7,228.68,228.64,31.84]
[1759710697854,5.10424065,228.65,228.58,0.65]
[1759710698153,5.10424065,228.62,228.56,32.04]
[1759710698353,0.7,228.64,228.57,0.65]
[1759710698354,5.10424065,228.63,228.57,0.65]
[1759710698851,5.10424065,228.63,228.56,32.04]
[1759710698852,5.10424065,228.6,228.56,0.2]
[1759710699043,5.10424065,228.58,228.56,0.2]
[1759710699230,0.7,228.62,228.56,0.2]
[1759710699428,5.10424065,228.59,228.56,0.2]
[1759710699644,5.80424065,228.58,228.56,0.2]
[1759710700550,5.10424065,228.59,228.56,0.2]
[1759710700861,5.10424065,228.58,228.56,0.2]
[1759710701061,0.7,228.6,228.56,0.2]
[1759710701262,0.7,228.59,228.56,0.2]
[1759710701463,5.80424065,228.59,228.56,0.2]
[1759710702471,5.10424065,228.58,228.56,0.2]
[1759710703171,5.10424065,228.57,228.56,0.2]
[1759710703370,5.80424065,228.57,228.56,0.2]
[1759710706784,10.17926799,228.57,228.56,0.2]
[1759710707078,5.80424065,228.57,228.56,0.2]
[1759710707763,10.17926799,228.57,228.56,0.2]
[1759710707956,5.80424065,228.57,228.56,0.2]
[1759710709069,24.84278631,228.57,228.56,0.2]
[1759710710072,21.5,228.57,228.56,0.2]
[1759710710776,24.84278631,228.57,228.56,0.2]
[1759710713964,29.21781365,228.57,228.56,0.2]
[1759710714481,24.84278631,228.57,228.56,0.2]
[1759710715066,29.21781365,228.57,228.56,0.2]
[1759710715669,24.84278631,228.57,228.56,0.2]
[1759710716267,0.7,228.61,228.56,0.2]
[1759710716464,3.34278631,228.61,228.57,0.71]
[1759710716677,35.16278631,228.61,228.58,0.71]
[1759710716879,0.7,228.64,228.59,0.71]
[1759710716880,3.34278631,228.64,228.59,0.71]
[1759710717187,3.34278631,228.64,228.56,0.2]
[1759710717188,20.8,228.61,228.6,0.71]
[1759710717486,0.7,228.66,228.6,0.71]
[1759710717659,35.01734096,228.76,228.6,0.71]
[1759710717660,1.38943005,228.67,228.6,0.71]
[1759710717863,1.38943005,228.65,228.6,0.71]
[1759710718077,1.38943005,228.65,228.56,0.2]
[1759710718078,20.8,228.63,228.61,0.71]
[1759710718275,32.52,228.66,228.61,0.71]
[1759710718480,20.8,228.63,228.61,0.71]
[1759710718673,1.38943005,228.65,228.61,0.71]
[1759710719069,3.33985635,228.62,228.56,0.2]
[1759710719384,3.33985635,228.59,228.56,0.2]
[1759710719589,3.33985635,228.6,228.56,0.2]
[1759710719765,3.33985635,228.6,228.56,0.91]
[1759710719964,3.33985635,228.57,228.56,0.2]
[1759710720389,35.71633156,228.57,228.56,0.2]
[1759710721875,40.0913589,228.57,228.56,0.2]
[1759710722266,32.52,228.57,228.56,0.2]
[1759710722471,0.7,228.6,228.56,0.2]
[1759710722803,3.33985635,228.57,228.56,0.2]
[1759710723096,31.82,228.57,228.56,0.2]
[1759710723292,31.82,228.57,228.56,0.91]
[1759710724069,31.82,228.57,228.56,0.2]
[1759710724271,31.82,228.57,228.56,0.91]
[1759710724584,31.82,228.59,228.56,0.91]
[1759710724785,31.82,228.59,228.57,0.71]
[1759710725175,35.15985635,228.59,228.56,0.2]
[1759710725373,35.15985635,228.59,228.56,0.91]
[1759710725788,31.82,228.59,228.56,0.91]
[1759710726092,35.15985635,228.59,228.56,0.2]
[1759710726300,31.82,228.59,228.57,0.71]
[1759710726800,20.8,228.57,228.56,0.2]
[1759710727012,24.13985635,228.57,228.56,0.2]
[1759710727291,24.83985635,228.57,228.56,0.2]
[1759710727694,35.71633156,228.57,228.56,0.2]
[1759710728602,40.0913589,228.57,228.56,0.2]
[1759710729104,0.7,228.6,228.56,0.2]
[1759710729296,0.7,228.64,228.57,0.71]
[1759710729500,3.33985635,228.62,228.57,0.71]
[1759710729677,3.33985635,228.62,228.58,0.71]
[1759710729878,31.8,228.63,228.59,0.71]
[1759710729879,35.13985635,228.63,228.59,0.71]
[1759710730893,31.8,228.63,228.6,0.71]
[1759710731095,0.7,228.67,228.61,0.71]
[1759710731096,3.33985635,228.67,228.61,0.71]
[1759710731308,3.33985635,228.71,228.61,0.71]
[1759710731477,31.8,228.7,228.61,0.71]
[1759710732703,31.8,228.7,228.61,5.08424556]
[1759710732904,31.8,228.7,228.62,0.71]
[1759710733102,3.33985635,228.76,228.63,10.87647521]
[1759710733300,31.8,228.77,228.66,20.8]
[1759710733602,31.8,228.77,228.67,0.71]
[1759710733794,31.8,228.8,228.68,10.87647521]
[1759710734002,31.8,228.8,228.61,15.30990016]
[1759710734003,3.33985635,228.77,228.69,0.71]
[1759710734186,0.7,228.79,228.69,0.71]
[1759710734385,31.8,228.8,228.69,0.71]
[1759710734704,3.33985635,228.77,228.69,0.71]
[1759710734999,3.33985635,228.75,228.69,0.71]
[1759710735190,3.33985635,228.76,228.69,0.71]
[1759710735499,31.8,228.8,228.69,5.08266728]
[1759710735676,3.33985635,228.77,228.7,0.71]
[1759710735998,3.33985635,228.76,228.7,0.71]
[1759710736306,24.13985635,228.77,228.7,0.71]
[1759710736474,20.8,228.77,228.7,0.71]
[1759710736801,31.8,228.8,228.7,0.71]
[1759710736802,3.33985635,228.79,228.7,0.71]
[1759710736974,3.33985635,228.8,228.7,0.71]
[1759710737182,0.7,228.85,228.71,10.87647521]
[1759710737375,3.33985635,228.86,228.75,10.87647521]
[1759710737601,3.33985635,228.86,228.76,0.71]
[1759710737984,20.8,228.85,228.76,0.71]
[1759710738185,3.33985635,228.88,228.77,10.87647521]
[1759710738514,3.33985635,228.88,228.78,0.71]
[1759710739081,0.71,228.9,228.79,10.87647521]
[1759710739280,3.33985635,228.89,228.8,0.71]
[1759710739503,3.33985635,228.91,228.8,0.71]
[1759710739888,53.29,228.93,228.8,0.71]
[1759710740094,3.33985635,228.9,228.8,0.71]
[1759710740698,3.33985635,228.9,228.81,4.37043835]
[1759710740887,3.33985635,228.9,228.82,0.71]
[1759710741900,20.8,228.94,228.82,0.71]
[1759710742215,31.86,228.95,228.83,10.87647521]
[1759710742384,35.19985635,228.95,228.84,0.71]
[1759710742709,35.19985635,228.95,228.85,4.36967445]
[1759710742890,35.19985635,228.95,228.86,0.71]
[1759710743207,31.86,228.95,228.86,0.71]
[1759710743710,0.1,228.95,228.86,21.51]
[1759710743916,0.1,228.95,228.87,0.71]
[1759710744118,4.04985635,228.94,228.86,20.8]
[1759710744409,0.1,228.95,228.83,0.71]
[1759710744410,3.33985635,228.9,228.83,0.71]
[1759710744712,3.33985635,228.88,228.83,0.71]
[1759710745099,0.71,228.91,228.84,0.71]
[1759710745295,3.33985635,228.91,228.84,0.71]
[1759710745491,4.04985635,228.91,228.84,0.71]
[1759710747113,0.71,228.91,228.84,0.71]
[1759710747422,4.04985635,228.91,228.84,0.71]
[1759710747789,0.71,228.91,228.84,0.71]
[1759710748334,4.04985635,228.91,228.84,0.71]
[1759710749187,4.04985635,228.93,228.84,0.71]
[1759710749434,3.43985635,228.95,228.84,5.07983362]
[1759710749724,0.71,228.94,228.85,0.71]
[1759710749894,3.33985635,228.93,228.85,0.71]
[1759710750506,0.71,228.94,228.85,0.71]
[1759710750701,3.33985635,228.93,228.85,0.71]
[1759710751413,3.33985635,228.92,228.85,0.71]
[1759710751610,4.04985635,228.92,228.85,0.71]
[1759710752117,3.33985635,228.91,228.84,20.8]
[1759710752294,4.04985635,228.91,228.84,20.8]
[1759710752892,3.33985635,228.92,228.84,20.8]
[1759710753120,0.1,228.95,228.86,10.87647521]
[1759710753321,0.1,228.95,228.87,0.71]
[1759710753700,0.1,228.95,228.88,10.87647521]
[1759710753920,0.1,228.95,228.89,0.71]
[1759710754917,0.1,228.95,228.9,10.87647521]
[1759710755219,0.81,228.95,228.88,20.8]
[1759710756106,0.1,228.95,228.89,0.71]
[1759710759236,0.1,228.95,228.94,20.8]
[1759710759410,0.1,228.95,228.94,32.37647521]
[1759710761426,0.1,228.95,228.94,36.74443187]
[1759710761934,0.1,228.95,228.94,32.37647521]
[1759710762344,0.1,228.95,228.94,36.74443187]
[1759710762704,0.1,228.95,228.94,32.37647521]
[1759710762927,0.1,228.95,228.94,65.82415407]
[1759710763128,0.1,228.95,228.94,64.07647521]
[1759710763336,0.1,228.95,228.94,32.37647521]
[1759710763500,0.1,228.95,228.94,42.57647521]
[1759710763827,0.1,228.95,228.9,0.7]
[1759710764038,0.1,228.95,228.91,31.7]
[1759710764541,0.1,228.95,228.91,32.4]
[1759710764843,0.1,228.95,228.89,11.57647521]
[1759710764998,0.1,228.95,228.92,31.7]
[1759710765202,4.15985635,228.95,228.92,31.7]
[1759710765901,4.15985635,228.95,228.89,31.7]
[1759710765902,3.33985635,228.93,228.89,31.7]
[1759710766122,3.33985635,228.94,228.89,31.7]
[1759710766426,0.72,228.93,228.89,31.7]
[1759710767024,0.1,228.95,228.89,31.7]
[1759710767260,4.05985635,228.94,228.89,31.7]
[1759710767551,0.72,228.93,228.89,31.7]
[1759710768136,4.13985635,228.95,228.89,31.7]
[1759710769038,5.90328045,228.95,228.89,31.7]
[1759710769250,0.8,228.95,228.89,32.37]
[1759710769627,5.90328045,228.95,228.89,32.37]
[1759710770163,0.1,228.95,228.89,32.37]
[1759710771228,0.7,228.94,228.89,31.7]
[1759710771648,5.20328045,228.95,228.86,0.67]
[1759710771831,5.20328045,228.95,228.86,31.68]
[1759710771832,5.10328045,228.9,228.86,31.68]
[1759710772749,5.80328045,228.93,228.86,32.35]
[1759710772944,0.7,228.93,228.86,32.35]
[1759710773131,5.20328045,228.95,228.87,0.67]
[1759710773726,5.20328045,228.95,228.87,5.03920969]
[1759710774142,0.1,228.95,228.88,0.67]
[1759710774451,0.1,228.95,228.88,11.54647521]
[1759710774663,0.1,228.95,228.89,11.54647521]
[1759710775247,0.1,228.95,228.93,10.87647521]
[1759710775437,0.1,228.95,228.94,42.55647521]
[1759710775638,0.1,228.95,228.94,43.22647521]
[1759710776730,0.1,228.95,228.94,42.55647521]
[1759710777646,0.1,228.95,228.94,43.22647521]
[1759710777849,0.1,228.95,228.91,10.87647521]
[1759710778161,0.1,228.95,228.93,32.35]
[1759710778748,0.1,228.95,228.93,31.68]
[1759710778938,0.1,228.95,228.93,32.35]
[1759710779236,0.1,228.95,228.94,0.67]
[1759710780242,0.1,228.95,228.94,15.91443187]
[1759710781433,0.1,228.95,228.94,11.54647521]
[1759710781634,0.1,228.95,228.9,10.92148688]
[1759710781635,0.1,228.95,228.92,20.8]
[1759710781841,0.1,228.95,228.93,32.33]
[1759710782228,0.1,228.95,228.94,0.67]
[1759710782725,0.1,228.95,228.93,31.66]
[1759710783056,0.1,228.95,228.94,11.54647521]
[1759710783647,0.1,228.95,228.94,43.20647521]
[1759710784033,0.1,228.95,228.94,47.57443187]
[1759710784727,0.1,228.95,228.89,0.67]
[1759710784931,0.1,228.95,228.93,20.8]
[1759710785249,0.1,228.95,228.94,29.96]
[1759710787053,0.8,228.95,228.91,10.87647521]
[1759710787232,0.8,228.95,228.86,3.61567807]
[1759710787233,0.7,228.94,228.86,10.87647521]
[1759710787432,0.7,228.94,228.88,10.87647521]
[1759710787833,0.1,228.95,228.88,11.54647521]
[1759710788253,0.1,228.95,228.88,15.91554015]
[1759710788457,5.90328045,228.95,228.88,11.54647521]
[1759710788761,0.8,228.95,228.88,11.54647521]
[1759710788956,0.1,228.95,228.88,15.91554633]
[1759710789472,0.1,228.95,228.89,0.67]
[1759710789668,0.7,228.94,228.9,31.66]
[1759710790453,0.1,228.95,228.9,31.66]
[1759710790454,0.7,228.93,228.9,31.66]
[1759710790655,0.7,228.93,228.85,20.8]
[1759710790656,5.80328045,228.92,228.82,11.54647521]
[1759710790995,0.1,228.95,228.82,11.54647521]
[1759710790996,5.10328045,228.89,228.83,31.66]
[1759710791288,4.46778128,228.95,228.82,11.54647521]
[1759710791289,5.10328045,228.86,228.82,31.64]
[1759710791441,0.7,228.85,228.82,31.64]
[1759710791781,20.8,228.92,228.8,31.64]
[1759710791782,5.80328045,228.84,228.8,31.64]
[1759710791945,20.8,228.92,228.73,5.0419598]
[1759710791946,5.10328045,228.81,228.73,5.0419598]
[1759710792152,5.10328045,228.82,228.76,31.64]
[1759710792863,5.80328045,228.83,228.76,31.64]
[1759710793185,5.80328045,228.83,228.76,32.31]
[1759710793186,0.7,228.83,228.76,32.31]
[1759710793345,5.80328045,228.83,228.76,32.31]
[1759710793643,5.10328045,228.82,228.76,31.64]
[1759710793852,5.10328045,228.8,228.72,0.67]
[1759710794076,5.80328045,228.79,228.73,31.66]
[1759710794468,0.7,228.79,228.73,31.66]
[1759710795051,5.80328045,228.78,228.73,31.64]
[1759710795262,0.7,228.77,228.73,31.64]
[1759710795470,5.10328045,228.79,228.73,31.64]
[1759710795658,5.80328045,228.8,228.73,31.64]
[1759710796090,10.92265668,228.89,228.73,36.01192747]
[1759710796299,5.80328045,228.83,228.74,0.67]
[1759710796483,5.10328045,228.82,228.74,0.67]
[1759710796684,5.10328045,228.81,228.74,0.67]
[1759710796998,5.10328045,228.8,228.74,0.67]
[1759710797510,5.80328045,228.81,228.74,0.67]
[1759710797665,5.10328045,228.8,228.73,31.64]
[1759710798594,5.80328045,228.81,228.73,31.64]
[1759710798968,0.7,228.81,228.73,31.64]
[1759710799168,20.8,228.84,228.73,31.64]
[1759710799169,5.10328045,228.83,228.74,0.68]
[1759710800098,0.72,228.82,228.74,0.68]
[1759710801107,5.82328045,228.82,228.74,0.68]
[1759710801809,0.72,228.82,228.74,5.05176082]
[1759710802117,5.10328045,228.85,228.75,32.32]
[1759710802328,5.10328045,228.83,228.75,31.64]
[1759710802611,20.8,228.88,228.74,31.64]
[1759710802612,5.10328045,228.79,228.74,31.64]
[1759710802805,0.72,228.78,228.74,31.64]
[1759710803117,0.72,228.8,228.74,32.32]
[1759710803295,5.82328045,228.8,228.74,31.64]
[1759710803485,5.82328045,228.8,228.74,32.32]
[1759710803486,0.72,228.8,228.74,32.32]
[1759710803685,5.10328045,228.83,228.75,0.68]
[1759710804111,0.72,228.85,228.75,0.68]
[1759710804315,0.72,228.85,228.76,4.3713936]
[1759710804486,0.72,228.85,228.77,0.68]
[1759710807014,0.72,228.9,228.81,20.8]
[1759710807198,5.10328045,228.93,228.82,32.32]
[1759710807397,0.72,228.93,228.83,0.68]
[1759710807604,5.82328045,228.93,228.83,0.68]
[1759710807991,0.72,228.93,228.83,0.68]
[1759710808496,5.10328045,228.91,228.82,31.64]
[1759710808719,0.1,228.95,228.82,31.64]
[1759710808720,5.10328045,228.92,228.83,0.68]
[1759710809036,0.72,228.92,228.83,0.68]
[1759710810320,5.82328045,228.92,228.83,0.68]
[1759710810642,0.72,228.92,228.83,5.05004741]
[1759710810925,5.10328045,228.94,228.84,0.68]
[1759710811131,5.10328045,228.92,228.84,0.68]
[1759710811320,5.82328045,228.91,228.84,0.68]
[1759710811831,5.10328045,228.89,228.82,31.64]
[1759710812040,0.72,228.89,228.82,31.64]
[1759710812212,0.72,228.92,228.83,0.68]
[1759710812736,0.72,228.92,228.83,5.04999699]
[1759710813528,5.81328045,228.91,228.83,0.68]
[1759710813734,5.81328045,228.91,228.83,5.0500264]
[1759710813933,5.81328045,228.91,228.84,0.65]
[1759710813934,0.71,228.91,228.84,0.65]
[1759710816312,5.81328045,228.91,228.82,31.64]
[1759710816524,0.71,228.9,228.83,0.65]
[1759710816836,0.71,228.9,228.83,32.27]
[1759710817831,0.71,228.9,228.83,36.64001737]
[1759710818015,0.71,228.9,228.83,32.27]
[1759710818637,0.71,228.9,228.83,36.63999868]
[1759710819017,5.10328045,228.93,228.84,0.65]
[1759710819410,5.10328045,228.93,228.84,5.01979632]
[1759710819609,5.10328045,228.93,228.85,0.65]
[1759710819830,0.71,228.94,228.85,0.65]
[1759710820034,5.10328045,228.93,228.85,0.65]
[1759710820624,0.1,228.95,228.86,10.87647521]
[1759710820821,5.10328045,228.9,228.81,0.65]
[1759710821030,5.81328045,228.89,228.82,42.49647521]
[1759710821232,5.10328045,228.85,228.77,0.65]
[1759710821432,5.10328045,228.85,228.77,32.27]
[1759710821433,5.10328045,228.84,228.77,32.27]
[1759710821731,0.71,228.85,228.78,0.65]
[1759710821920,5.81328045,228.85,228.78,0.65]
[1759710823138,0.71,228.85,228.78,0.65]
[1759710823342,5.10328045,228.86,228.78,0.65]
[1759710824216,5.10328045,228.85,228.78,0.65]
[1759710824419,20.8,228.9,228.78,0.65]
[1759710824420,20.8,228.9,228.79,10.87647521]
[1759710824638,26.61328045,228.9,228.8,0.65]
[1759710824819,5.81328045,228.9,228.8,0.65]
[1759710825148,0.71,228.9,228.81,10.87647521]
[1759710825327,0.71,228.9,228.82,0.65]
[1759710825529,0.71,228.9,228.83,31.6]
[1759710825730,5.10328045,228.87,228.78,0.65]
[1759710825926,5.81328045,228.87,228.79,42.47647521]
[1759710826248,5.81328045,228.87,228.8,0.65]
[1759710826545,0.71,228.87,228.8,0.65]
[1759710826718,5.10328045,228.89,228.8,0.65]
[1759710827418,5.81328045,228.9,228.81,4.37043835]
[1759710827618,0.69,228.89,228.8,0.65]
[1759710827829,5.79328045,228.89,228.8,0.65]
[1759710828040,5.79328045,228.89,228.8,5.02061946]
[1759710828646,5.79328045,228.88,228.8,0.65]
[1759710830549,5.79328045,228.88,228.79,42.47647521]
[1759710830848,0.69,228.89,228.8,0.66]
[1759710831341,0.1,228.95,228.81,10.87647521]
[1759710831342,0.69,228.92,228.81,10.87647521]
[1759710831545,21.49,228.92,228.83,10.87647521]
[1759710831753,21.49,228.92,228.79,35.97080028]
[1759710831754,24.13232382,228.92,228.8,10.87647521]
[1759710831918,24.13232382,228.92,228.8,11.53647521]
[1759710831919,3.33232382,228.9,228.8,11.53647521]
[1759710832122,0.69,228.89,228.8,11.53647521]
[1759710832322,0.69,228.89,228.8,15.90704483]